[Event "Titled Tuesday Blitz June 6 Early 2023"]
[White "MKlose11"]
[Black "Marcziter, Dmitrii"]
[BlackFideId "13900765"]
[WhiteElo "2555"]
[BlackElo "2162"]
[Result "0-1"]
[Round "9"]
[TimeControl "180+2"]
[Date "2023.06.06"]
[WhiteClock "0:00:59"]
[BlackClock "0:00:39"]
[Board "62"]

1. e4 {[%clk 0:02:56]}  c5 {[%clk 0:02:59]} 2. Nc3 {[%clk 0:02:53]}  Nc6 {[%clk 0:02:58]} 3. g3 {[%clk 0:02:54]}  g6 {[%clk 0:02:57]} 4. Bg2 {[%clk 0:02:54]}  Bg7 {[%clk 0:02:57]} 5. d3 {[%clk 0:02:55]}  d6 {[%clk 0:02:58]} 6. Be3 {[%clk 0:02:55]}  e6 {[%clk 0:02:57]} 7. Qd2 {[%clk 0:02:56]}  Qa5 {[%clk 0:02:45]} 8. Nge2 {[%clk 0:02:55]}  Nd4 {[%clk 0:02:45]} 9. Nc1 {[%clk 0:02:45]}  Ne7 {[%clk 0:02:40]} 10. O-O {[%clk 0:02:45]}  Nec6 {[%clk 0:02:37]} 11. Nb3 {[%clk 0:02:45]}  Qd8 {[%clk 0:02:34]} 12. Nd1 {[%clk 0:02:40]}  O-O {[%clk 0:02:30]} 13. c3 {[%clk 0:02:39]}  Nxb3 {[%clk 0:02:29]} 14. axb3 {[%clk 0:02:40]}  Rb8 {[%clk 0:02:20]} 15. Bh6 {[%clk 0:02:39]}  b6 {[%clk 0:02:12]} 16. Bxg7 {[%clk 0:02:39]}  Kxg7 {[%clk 0:02:12]} 17. Ne3 {[%clk 0:02:40]}  h5 {[%clk 0:02:05]} 18. f4 {[%clk 0:02:40]}  f6 {[%clk 0:01:55]} 19. Nc2 {[%clk 0:02:27]}  Bb7 {[%clk 0:01:52]} 20. d4 {[%clk 0:02:26]}  Qc7 {[%clk 0:01:49]} 21. d5 {[%clk 0:02:11]}  exd5 {[%clk 0:01:47]} 22. exd5 {[%clk 0:02:12]}  Na5 {[%clk 0:01:47]} 23. Ra3 {[%clk 0:02:08]}  Rbe8 {[%clk 0:01:36]} 24. Ne3 {[%clk 0:02:06]}  a6 {[%clk 0:01:22]} 25. Kf2 {[%clk 0:02:04]}  Bc8 {[%clk 0:01:16]} 26. Qd3 {[%clk 0:02:02]}  b5 {[%clk 0:01:09]} 27. b4 {[%clk 0:01:57]}  cxb4 {[%clk 0:01:02]} 28. cxb4 {[%clk 0:01:57]}  Nc4 {[%clk 0:01:02]} 29. Nxc4 {[%clk 0:01:57]}  bxc4 {[%clk 0:01:02]} 30. Qd4 {[%clk 0:01:54]}  Re7 {[%clk 0:00:58]} 31. Rc3 {[%clk 0:01:49]}  Rfe8 {[%clk 0:00:55]} 32. Bf3 {[%clk 0:01:49]}  Bg4 {[%clk 0:00:53]} 33. Rxc4 {[%clk 0:01:44]}  Qd7 {[%clk 0:00:52]} 34. Kg2 {[%clk 0:01:15]}  Bh3+ {[%clk 0:00:47]} 35. Kf2 {[%clk 0:01:15]}  Bxf1 {[%clk 0:00:47]} 36. Kxf1 {[%clk 0:01:16]}  Qh3+ {[%clk 0:00:43]} 37. Bg2 {[%clk 0:00:58]}  Re1+ {[%clk 0:00:40]} 38. Kf2 {[%clk 0:00:59]}  R8e2+ {[%clk 0:00:39]} 0-1


[Site "https://www.chess.com"]

[Event "Titled Tuesday Blitz June 6 Early 2023"]
[White "Hajiyev, Kanan"]
[Black "MunichMouse"]
[WhiteFideId "13404148"]
[WhiteElo "2115"]
[BlackElo "2305"]
[Result "1-0"]
[Round "9"]
[TimeControl "180+2"]
[Date "2023.06.06"]
[WhiteClock "0:00:15"]
[BlackClock "0:00:01"]
[Board "65"]

1. d4 {[%clk 0:02:57]}  Nf6 {[%clk 0:02:58]} 2. Nf3 {[%clk 0:02:57]}  g6 {[%clk 0:02:58]} 3. c4 {[%clk 0:02:58]}  Bg7 {[%clk 0:02:59]} 4. g3 {[%clk 0:02:59]}  d6 {[%clk 0:02:59]} 5. Bg2 {[%clk 0:03:00]}  O-O {[%clk 0:03:00]} 6. O-O {[%clk 0:03:00]}  Nbd7 {[%clk 0:03:00]} 7. b4 {[%clk 0:03:00]}  Ne4 {[%clk 0:02:58]} 8. Bb2 {[%clk 0:03:00]}  c5 {[%clk 0:02:58]} 9. Nbd2 {[%clk 0:02:50]}  Nxd2 {[%clk 0:02:48]} 10. Qxd2 {[%clk 0:02:50]}  cxb4 {[%clk 0:02:41]} 11. Qxb4 {[%clk 0:02:50]}  Qb6 {[%clk 0:02:41]} 12. Qb3 {[%clk 0:02:42]}  a5 {[%clk 0:02:09]} 13. Rac1 {[%clk 0:02:20]}  a4 {[%clk 0:02:01]} 14. Qb5 {[%clk 0:02:20]}  a3 {[%clk 0:01:47]} 15. Ba1 {[%clk 0:02:15]}  Qxb5 {[%clk 0:01:26]} 16. cxb5 {[%clk 0:02:16]}  Ra5 {[%clk 0:01:19]} 17. Rb1 {[%clk 0:02:04]}  Nb6 {[%clk 0:01:19]} 18. Bc3 {[%clk 0:01:41]}  Ra4 {[%clk 0:01:12]} 19. Rb4 {[%clk 0:01:38]}  Ra8 {[%clk 0:00:58]} 20. e4 {[%clk 0:01:34]}  Bd7 {[%clk 0:00:55]} 21. Nd2 {[%clk 0:01:18]}  Rfc8 {[%clk 0:00:55]} 22. Ba1 {[%clk 0:01:18]}  Rc2 {[%clk 0:00:54]} 23. Nb3 {[%clk 0:00:59]}  Ra4 {[%clk 0:00:43]} 24. Rxa4 {[%clk 0:00:51]}  Nxa4 {[%clk 0:00:44]} 25. e5 {[%clk 0:00:40]}  Bxb5 {[%clk 0:00:39]} 26. Rc1 {[%clk 0:00:38]}  Rxc1+ {[%clk 0:00:32]} 27. Nxc1 {[%clk 0:00:38]}  dxe5 {[%clk 0:00:25]} 28. dxe5 {[%clk 0:00:39]}  Bc6 {[%clk 0:00:25]} 29. Nd3 {[%clk 0:00:27]}  f6 {[%clk 0:00:20]} 30. Bxc6 {[%clk 0:00:20]}  bxc6 {[%clk 0:00:19]} 31. Nb4 {[%clk 0:00:20]}  fxe5 {[%clk 0:00:09]} 32. Nc2 {[%clk 0:00:15]}  e4 {[%clk 0:00:06]} 33. Bxg7 {[%clk 0:00:16]}  Kxg7 {[%clk 0:00:06]} 34. Nxa3 {[%clk 0:00:17]}  Nc3 {[%clk 0:00:06]} 35. Kf1 {[%clk 0:00:15]}  Kf6 {[%clk 0:00:04]} 36. Nc4 {[%clk 0:00:14]}  Nxa2 {[%clk 0:00:01]} 37. Ke2 {[%clk 0:00:15]} 1-0


[Site "https://www.chess.com"]

[Event "Titled Tuesday Blitz June 6 Early 2023"]
[White "Lopez Idarraga, Daniel Eduardo"]
[Black "Ibadov, Dashgyn"]
[WhiteFideId "4405501"]
[BlackFideId "24107514"]
[WhiteElo "1980"]
[BlackElo "2208"]
[Result "1/2-1/2"]
[Round "9"]
[TimeControl "180+2"]
[Date "2023.06.06"]
[WhiteClock "0:00:06"]
[BlackClock "0:00:03"]
[Board "66"]

1. d4 {[%clk 0:02:55]}  d5 {[%clk 0:02:58]} 2. Bf4 {[%clk 0:02:54]}  Nf6 {[%clk 0:02:58]} 3. e3 {[%clk 0:02:54]}  c5 {[%clk 0:02:58]} 4. Nd2 {[%clk 0:02:53]}  Nc6 {[%clk 0:02:58]} 5. c3 {[%clk 0:02:53]}  Bf5 {[%clk 0:02:56]} 6. Ngf3 {[%clk 0:02:52]}  e6 {[%clk 0:02:55]} 7. Bb5 {[%clk 0:02:51]}  Nd7 {[%clk 0:02:44]} 8. Qa4 {[%clk 0:02:49]}  Qb6 {[%clk 0:02:25]} 9. Ne5 {[%clk 0:02:48]}  Ndxe5 {[%clk 0:02:22]} 10. Bxe5 {[%clk 0:02:46]}  f6 {[%clk 0:02:08]} 11. Bg3 {[%clk 0:02:46]}  Be7 {[%clk 0:02:07]} 12. Nb3 {[%clk 0:02:39]}  c4 {[%clk 0:01:44]} 13. Na5 {[%clk 0:02:30]}  Rc8 {[%clk 0:01:33]} 14. b4 {[%clk 0:02:16]}  O-O {[%clk 0:01:25]} 15. Nxc6 {[%clk 0:01:44]}  bxc6 {[%clk 0:01:24]} 16. Ba6 {[%clk 0:01:44]}  Rce8 {[%clk 0:01:19]} 17. O-O {[%clk 0:01:43]}  Rd8 {[%clk 0:01:04]} 18. f3 {[%clk 0:01:38]}  Bd3 {[%clk 0:01:01]} 19. Rfe1 {[%clk 0:01:36]}  Bd6 {[%clk 0:01:00]} 20. Bf2 {[%clk 0:01:33]}  e5 {[%clk 0:00:56]} 21. e4 {[%clk 0:01:32]}  Qc7 {[%clk 0:00:48]} 22. exd5 {[%clk 0:01:18]}  cxd5 {[%clk 0:00:47]} 23. dxe5 {[%clk 0:01:08]}  Bxe5 {[%clk 0:00:47]} 24. Rxe5 {[%clk 0:00:59]}  fxe5 {[%clk 0:00:45]} 25. Bb5 {[%clk 0:00:34]}  e4 {[%clk 0:00:40]} 26. Qxa7 {[%clk 0:00:31]}  Qe5 {[%clk 0:00:26]} 27. Bd4 {[%clk 0:00:28]}  Qg5 {[%clk 0:00:27]} 28. f4 {[%clk 0:00:25]}  Rxf4 {[%clk 0:00:21]} 29. Bc6 {[%clk 0:00:20]}  Rg4 {[%clk 0:00:18]} 30. Kh1 {[%clk 0:00:18]}  Rxg2 {[%clk 0:00:16]} 31. Be3 {[%clk 0:00:18]}  Qg4 {[%clk 0:00:11]} 32. Qe7 {[%clk 0:00:16]}  Rc8 {[%clk 0:00:03]} 33. Bxd5+ {[%clk 0:00:15]}  Kh8 {[%clk 0:00:03]} 34. Qe6 {[%clk 0:00:10]}  Qxe6 {[%clk 0:00:02]} 35. Bxe6 {[%clk 0:00:11]}  Re2 {[%clk 0:00:02]} 36. Bxc8 {[%clk 0:00:10]}  Rxe3 {[%clk 0:00:02]} 37. b5 {[%clk 0:00:08]}  Re2 {[%clk 0:00:01]} 38. b6 {[%clk 0:00:09]}  e3 {[%clk 0:00:01]} 39. b7 {[%clk 0:00:09]}  Be4+ {[%clk 0:00:02]} 40. Kg1 {[%clk 0:00:08]}  Rg2+ {[%clk 0:00:02]} 41. Kf1 {[%clk 0:00:09]}  e2+ {[%clk 0:00:03]} 42. Ke1 {[%clk 0:00:09]}  Bxb7 {[%clk 0:00:04]} 43. Bxb7 {[%clk 0:00:09]}  Rg1+ {[%clk 0:00:04]} 44. Kxe2 {[%clk 0:00:09]}  Rxa1 {[%clk 0:00:05]} 45. Ke3 {[%clk 0:00:08]}  Rxa2 {[%clk 0:00:05]} 46. h3 {[%clk 0:00:07]}  Rh2 {[%clk 0:00:03]} 47. Bc8 {[%clk 0:00:07]}  Kg8 {[%clk 0:00:03]} 48. Kd4 {[%clk 0:00:07]}  Kf7 {[%clk 0:00:03]} 49. Kxc4 {[%clk 0:00:08]}  Ke7 {[%clk 0:00:03]} 50. Kc5 {[%clk 0:00:07]}  Rf2 {[%clk 0:00:04]} 51. c4 {[%clk 0:00:07]}  g5 {[%clk 0:00:03]} 52. Bg4 {[%clk 0:00:06]}  Rf4 {[%clk 0:00:01]} 53. Kd5 {[%clk 0:00:06]}  Rf2 {[%clk 0:00:01]} 54. c5 {[%clk 0:00:06]}  Rd2+ {[%clk 0:00:02]} 55. Kc6 {[%clk 0:00:06]}  Kd8 {[%clk 0:00:01]} 56. Kb7 {[%clk 0:00:05]}  Rb2+ {[%clk 0:00:01]} 57. Kc6 {[%clk 0:00:06]}  h6 {[%clk 0:00:02]} 58. Kd6 {[%clk 0:00:06]}  Rd2+ {[%clk 0:00:02]} 59. Kc6 {[%clk 0:00:06]}  Rd3 {[%clk 0:00:02]} 60. Kb7 {[%clk 0:00:06]}  h5 {[%clk 0:00:02]} 61. Bf5 {[%clk 0:00:04]}  Rb3+ {[%clk 0:00:02]} 62. Kc6 {[%clk 0:00:04]}  Rb4 {[%clk 0:00:03]} 63. Kd6 {[%clk 0:00:04]}  g4 {[%clk 0:00:02]} 64. hxg4 {[%clk 0:00:05]}  hxg4 {[%clk 0:00:02]} 65. c6 {[%clk 0:00:06]}  Rd4+ {[%clk 0:00:02]} 66. Kc5 {[%clk 0:00:05]}  Rd2 {[%clk 0:00:02]} 67. Bxg4 {[%clk 0:00:04]}  Kc7 {[%clk 0:00:02]} 68. Bd7 {[%clk 0:00:04]}  Rc2+ {[%clk 0:00:02]} 69. Kd5 {[%clk 0:00:04]}  Rd2+ {[%clk 0:00:03]} 70. Ke6 {[%clk 0:00:04]}  Kb6 {[%clk 0:00:01]} 71. Ke7 {[%clk 0:00:04]}  Kc7 {[%clk 0:00:02]} 72. Ke6 {[%clk 0:00:05]}  Rd3 {[%clk 0:00:02]} 73. Ke7 {[%clk 0:00:05]}  Re3+ {[%clk 0:00:02]} 74. Kf6 {[%clk 0:00:05]}  Kd6 {[%clk 0:00:03]} 75. Kf5 {[%clk 0:00:06]}  Rc3 {[%clk 0:00:01]} 76. Ke4 {[%clk 0:00:06]}  Rc4+ {[%clk 0:00:01]} 77. Kd3 {[%clk 0:00:05]}  Rh4 {[%clk 0:00:02]} 78. Ke3 {[%clk 0:00:05]}  Rc4 {[%clk 0:00:01]} 79. Kd3 {[%clk 0:00:05]}  Rc5 {[%clk 0:00:02]} 80. Kd4 {[%clk 0:00:06]}  Rd5+ {[%clk 0:00:02]} 81. Ke4 {[%clk 0:00:06]}  Rc5 {[%clk 0:00:02]} 82. Kd4 {[%clk 0:00:07]}  Rxc6 {[%clk 0:00:03]} 83. Bxc6 {[%clk 0:00:06]} 1/2-1/2


[Site "https://www.chess.com"]

[Event "Titled Tuesday Blitz June 6 Early 2023"]
[White "Zaitsev, Alexander"]
[Black "Goroshkov, Maksym"]
[WhiteFideId "4164490"]
[BlackFideId "14142716"]
[WhiteElo "2373"]
[BlackElo "2322"]
[Result "0-1"]
[Round "9"]
[TimeControl "180+2"]
[Date "2023.06.06"]
[WhiteClock "0:00:04"]
[BlackClock "0:00:19"]
[Board "69"]

1. e4 {[%clk 0:03:00]}  e5 {[%clk 0:03:00]} 2. Nc3 {[%clk 0:03:00]}  Nf6 {[%clk 0:02:59]} 3. Bc4 {[%clk 0:03:01]}  Nc6 {[%clk 0:02:58]} 4. d3 {[%clk 0:03:01]}  Be7 {[%clk 0:02:58]} 5. f4 {[%clk 0:03:01]}  O-O {[%clk 0:02:58]} 6. Nf3 {[%clk 0:03:01]}  d6 {[%clk 0:02:58]} 7. O-O {[%clk 0:03:00]}  Bg4 {[%clk 0:02:59]} 8. h3 {[%clk 0:02:51]}  Bxf3 {[%clk 0:02:59]} 9. Qxf3 {[%clk 0:02:51]}  exf4 {[%clk 0:02:58]} 10. Bxf4 {[%clk 0:02:50]}  Ne5 {[%clk 0:02:59]} 11. Bxe5 {[%clk 0:02:51]}  dxe5 {[%clk 0:03:00]} 12. Kh1 {[%clk 0:02:46]}  c6 {[%clk 0:02:59]} 13. Ne2 {[%clk 0:02:34]}  a5 {[%clk 0:02:55]} 14. a4 {[%clk 0:02:34]}  g6 {[%clk 0:02:43]} 15. Rf2 {[%clk 0:02:23]}  Kg7 {[%clk 0:02:41]} 16. Raf1 {[%clk 0:02:23]}  b5 {[%clk 0:02:29]} 17. axb5 {[%clk 0:02:16]}  cxb5 {[%clk 0:02:30]} 18. Bxb5 {[%clk 0:02:07]}  Ng8 {[%clk 0:02:27]} 19. Qg3 {[%clk 0:01:30]}  f6 {[%clk 0:02:22]} 20. Bc4 {[%clk 0:01:30]}  Qb6 {[%clk 0:02:13]} 21. b3 {[%clk 0:01:17]}  a4 {[%clk 0:01:58]} 22. bxa4 {[%clk 0:01:17]}  Rxa4 {[%clk 0:01:58]} 23. Nc3 {[%clk 0:01:18]}  Ra7 {[%clk 0:01:51]} 24. Nd5 {[%clk 0:01:18]}  Qd8 {[%clk 0:01:45]} 25. Ne3 {[%clk 0:01:15]}  Bc5 {[%clk 0:01:41]} 26. Rf3 {[%clk 0:01:12]}  Bxe3 {[%clk 0:01:40]} 27. Rxe3 {[%clk 0:01:13]}  Rc7 {[%clk 0:01:31]} 28. Ref3 {[%clk 0:01:13]}  Rc6 {[%clk 0:01:31]} 29. h4 {[%clk 0:01:11]}  Ne7 {[%clk 0:01:28]} 30. h5 {[%clk 0:01:06]}  Qd6 {[%clk 0:01:24]} 31. Qf2 {[%clk 0:01:04]}  Ng8 {[%clk 0:01:09]} 32. Qa7+ {[%clk 0:01:01]}  Rc7 {[%clk 0:01:08]} 33. Qe3 {[%clk 0:01:02]}  Nh6 {[%clk 0:01:03]} 34. Rg3 {[%clk 0:00:57]}  g5 {[%clk 0:01:02]} 35. Qf3 {[%clk 0:00:44]}  Qd8 {[%clk 0:00:59]} 36. Qe2 {[%clk 0:00:37]}  Rc6 {[%clk 0:00:58]} 37. Bd5 {[%clk 0:00:36]}  Rb6 {[%clk 0:00:57]} 38. c3 {[%clk 0:00:36]}  Qe8 {[%clk 0:00:52]} 39. d4 {[%clk 0:00:34]}  g4 {[%clk 0:00:49]} 40. Qe3 {[%clk 0:00:29]}  Qxh5+ {[%clk 0:00:49]} 41. Kg1 {[%clk 0:00:30]}  Rfb8 {[%clk 0:00:43]} 42. dxe5 {[%clk 0:00:25]}  Qxe5 {[%clk 0:00:37]} 43. c4 {[%clk 0:00:24]}  Rb1 {[%clk 0:00:37]} 44. Qa7+ {[%clk 0:00:12]}  Kh8 {[%clk 0:00:33]} 45. Qf2 {[%clk 0:00:07]}  Kg7 {[%clk 0:00:30]} 46. Kh2 {[%clk 0:00:05]}  Rxf1 {[%clk 0:00:24]} 47. Qxf1 {[%clk 0:00:05]}  Rb3 {[%clk 0:00:24]} 48. Qf2 {[%clk 0:00:03]}  Nf7 {[%clk 0:00:22]} 49. Bxf7 {[%clk 0:00:03]}  Kxf7 {[%clk 0:00:21]} 50. c5 {[%clk 0:00:04]}  h5 {[%clk 0:00:19]} 0-1


[Site "https://www.chess.com"]

[Event "Titled Tuesday Blitz June 6 Early 2023"]
[White "Gavrilov, Maxim"]
[Black "Hristodoulou, Panagiotis"]
[WhiteFideId "24271454"]
[BlackFideId "4214340"]
[WhiteElo "1969"]
[BlackElo "2272"]
[Result "0-1"]
[Round "9"]
[TimeControl "180+2"]
[Date "2023.06.06"]
[WhiteClock "0:00:18"]
[BlackClock "0:00:44"]
[Board "71"]

1. b3 {[%clk 0:03:00]}  Nf6 {[%clk 0:02:11]} 2. Bb2 {[%clk 0:03:01]}  d5 {[%clk 0:02:11]} 3. Nf3 {[%clk 0:02:59]}  c6 {[%clk 0:02:12]} 4. e3 {[%clk 0:03:00]}  Bg4 {[%clk 0:02:12]} 5. c4 {[%clk 0:02:59]}  e6 {[%clk 0:02:12]} 6. Be2 {[%clk 0:02:59]}  Nbd7 {[%clk 0:02:12]} 7. Qc2 {[%clk 0:02:59]}  Bd6 {[%clk 0:02:12]} 8. Nc3 {[%clk 0:02:59]}  O-O {[%clk 0:02:13]} 9. d4 {[%clk 0:02:57]}  a6 {[%clk 0:02:11]} 10. O-O {[%clk 0:02:58]}  b5 {[%clk 0:02:11]} 11. h3 {[%clk 0:02:56]}  Bh5 {[%clk 0:02:08]} 12. Rac1 {[%clk 0:02:44]}  Qe7 {[%clk 0:02:03]} 13. c5 {[%clk 0:02:39]}  Bc7 {[%clk 0:02:03]} 14. b4 {[%clk 0:02:40]}  a5 {[%clk 0:02:01]} 15. a3 {[%clk 0:02:40]}  Bxf3 {[%clk 0:01:58]} 16. Bxf3 {[%clk 0:02:39]}  e5 {[%clk 0:01:59]} 17. dxe5 {[%clk 0:02:35]}  Nxe5 {[%clk 0:01:57]} 18. Be2 {[%clk 0:02:32]}  axb4 {[%clk 0:01:56]} 19. axb4 {[%clk 0:02:31]}  Rfe8 {[%clk 0:01:54]} 20. Rcd1 {[%clk 0:02:30]}  Ng6 {[%clk 0:01:48]} 21. g3 {[%clk 0:02:01]}  Qe6 {[%clk 0:01:45]} 22. Kg2 {[%clk 0:01:50]}  h5 {[%clk 0:01:42]} 23. Bf3 {[%clk 0:01:46]}  Ne5 {[%clk 0:01:41]} 24. Be2 {[%clk 0:01:40]}  Rab8 {[%clk 0:01:28]} 25. Rfe1 {[%clk 0:01:38]}  Nc4 {[%clk 0:01:26]} 26. Bxc4 {[%clk 0:01:37]}  bxc4 {[%clk 0:01:27]} 27. Qa4 {[%clk 0:01:18]}  h4 {[%clk 0:01:23]} 28. Ne2 {[%clk 0:01:09]}  hxg3 {[%clk 0:01:21]} 29. Nxg3 {[%clk 0:01:10]}  Bxg3 {[%clk 0:01:21]} 30. fxg3 {[%clk 0:01:09]}  Ra8 {[%clk 0:01:20]} 31. Qc2 {[%clk 0:01:07]}  Ne4 {[%clk 0:01:20]} 32. Rf1 {[%clk 0:00:59]}  Ra2 {[%clk 0:01:18]} 33. Ra1 {[%clk 0:00:48]}  Rea8 {[%clk 0:01:18]} 34. Qb1 {[%clk 0:00:39]}  Rxa1 {[%clk 0:01:16]} 35. Bxa1 {[%clk 0:00:39]}  c3 {[%clk 0:00:50]} 36. Qc2 {[%clk 0:00:34]}  d4 {[%clk 0:00:46]} 37. Kf3 {[%clk 0:00:19]}  Nd2+ {[%clk 0:00:44]} 38. Ke2 {[%clk 0:00:18]}  Qxe3+ {[%clk 0:00:44]} 0-1


[Site "https://www.chess.com"]

[Event "Titled Tuesday Blitz June 6 Early 2023"]
[White "Diaz Rosas, Julio Cesar"]
[Black "KorolDimitriy75"]
[WhiteFideId "5105099"]
[WhiteElo "2284"]
[BlackElo "2462"]
[Result "1-0"]
[Round "9"]
[TimeControl "180+2"]
[Date "2023.06.06"]
[WhiteClock "0:01:11"]
[BlackClock "0:00:07"]
[Board "73"]

1. e4 {[%clk 0:02:52]}  c5 {[%clk 0:03:00]} 2. Nf3 {[%clk 0:02:52]}  d6 {[%clk 0:03:00]} 3. Bc4 {[%clk 0:02:51]}  g6 {[%clk 0:02:55]} 4. O-O {[%clk 0:02:45]}  Bg7 {[%clk 0:02:55]} 5. c3 {[%clk 0:02:45]}  Nc6 {[%clk 0:02:38]} 6. d4 {[%clk 0:02:44]}  cxd4 {[%clk 0:02:33]} 7. cxd4 {[%clk 0:02:44]}  Nf6 {[%clk 0:02:30]} 8. d5 {[%clk 0:02:40]}  Nb8 {[%clk 0:02:21]} 9. Nc3 {[%clk 0:02:39]}  O-O {[%clk 0:02:21]} 10. Be3 {[%clk 0:02:37]}  Nbd7 {[%clk 0:02:11]} 11. Qd2 {[%clk 0:02:35]}  Nc5 {[%clk 0:02:03]} 12. Bxc5 {[%clk 0:02:26]}  dxc5 {[%clk 0:02:03]} 13. e5 {[%clk 0:02:24]}  Nd7 {[%clk 0:01:40]} 14. Rfe1 {[%clk 0:02:23]}  Nb6 {[%clk 0:01:38]} 15. b3 {[%clk 0:02:19]}  Bg4 {[%clk 0:01:32]} 16. Qf4 {[%clk 0:02:11]}  Bxf3 {[%clk 0:01:17]} 17. Qxf3 {[%clk 0:02:12]}  Nd7 {[%clk 0:00:55]} 18. Qg3 {[%clk 0:02:06]}  Qc7 {[%clk 0:00:32]} 19. f4 {[%clk 0:01:48]}  a6 {[%clk 0:00:32]} 20. a4 {[%clk 0:01:45]}  Rad8 {[%clk 0:00:26]} 21. Rad1 {[%clk 0:01:44]}  Kh8 {[%clk 0:00:21]} 22. Ne4 {[%clk 0:01:40]}  Qa5 {[%clk 0:00:19]} 23. Qh4 {[%clk 0:01:32]}  b5 {[%clk 0:00:18]} 24. axb5 {[%clk 0:01:26]}  axb5 {[%clk 0:00:19]} 25. Bf1 {[%clk 0:01:26]}  Nb6 {[%clk 0:00:18]} 26. d6 {[%clk 0:01:20]}  exd6 {[%clk 0:00:18]} 27. Nxd6 {[%clk 0:01:19]}  Rb8 {[%clk 0:00:11]} 28. Bxb5 {[%clk 0:01:15]}  Qb4 {[%clk 0:00:10]} 29. Bc4 {[%clk 0:01:12]}  Nxc4 {[%clk 0:00:09]} 30. bxc4 {[%clk 0:01:13]}  Qc3 {[%clk 0:00:07]} 31. Qg3 {[%clk 0:01:11]}  h6 {[%clk 0:00:07]} 32. Qxc3 {[%clk 0:01:11]} 1-0


[Site "https://www.chess.com"]

[Event "Titled Tuesday Blitz June 6 Early 2023"]
[White "Degenbaev, Aziz"]
[Black "Ramirez Vido, Robert Yorisan"]
[WhiteFideId "13802640"]
[BlackFideId "3513823"]
[WhiteElo "2152"]
[BlackElo "2461"]
[Result "1-0"]
[Round "9"]
[TimeControl "180+2"]
[Date "2023.06.06"]
[WhiteClock "0:00:58"]
[BlackClock "0:00:05"]
[Board "74"]

1. e4 {[%clk 0:03:00]}  d6 {[%clk 0:02:58]} 2. d4 {[%clk 0:03:00]}  Nf6 {[%clk 0:02:58]} 3. Nc3 {[%clk 0:03:01]}  g6 {[%clk 0:02:57]} 4. f4 {[%clk 0:03:01]}  Bg7 {[%clk 0:02:57]} 5. Nf3 {[%clk 0:03:01]}  c5 {[%clk 0:02:54]} 6. Bb5+ {[%clk 0:02:47]}  Bd7 {[%clk 0:02:48]} 7. e5 {[%clk 0:02:45]}  Ng4 {[%clk 0:02:49]} 8. Bxd7+ {[%clk 0:02:38]}  Qxd7 {[%clk 0:02:46]} 9. h3 {[%clk 0:02:39]}  cxd4 {[%clk 0:02:46]} 10. Qxd4 {[%clk 0:02:36]}  Nh6 {[%clk 0:02:43]} 11. Qf2 {[%clk 0:02:30]}  Nc6 {[%clk 0:02:41]} 12. Bd2 {[%clk 0:02:29]}  dxe5 {[%clk 0:02:26]} 13. O-O-O {[%clk 0:02:29]}  O-O-O {[%clk 0:02:19]} 14. Nxe5 {[%clk 0:02:11]}  Nxe5 {[%clk 0:02:12]} 15. fxe5 {[%clk 0:02:10]}  Nf5 {[%clk 0:02:10]} 16. Qxa7 {[%clk 0:02:02]}  Bxe5 {[%clk 0:01:37]} 17. Be3 {[%clk 0:01:28]}  Qc6 {[%clk 0:01:00]} 18. Qa8+ {[%clk 0:01:18]}  Kc7 {[%clk 0:00:52]} 19. Qa5+ {[%clk 0:01:17]}  Kc8 {[%clk 0:00:44]} 20. Qxe5 {[%clk 0:01:17]}  f6 {[%clk 0:00:19]} 21. Qf4 {[%clk 0:01:16]}  e5 {[%clk 0:00:18]} 22. Qf2 {[%clk 0:01:14]}  Nd6 {[%clk 0:00:15]} 23. Qxf6 {[%clk 0:01:11]}  Rhf8 {[%clk 0:00:08]} 24. Qxe5 {[%clk 0:01:06]}  Rfe8 {[%clk 0:00:07]} 25. Qf4 {[%clk 0:01:02]}  Nc4 {[%clk 0:00:05]} 26. Ba7 {[%clk 0:00:58]} 1-0


[Site "https://www.chess.com"]